[Event "Odense-ch Mester-2 2018"]
[Site "Odense"]
[Date "2018.10.14"]
[Round "4"]
[White "Pawlak, Wojciech Zbigniew"]
[Black "Jensen, Anna Hedelykke"]
[Result "0-1"]
[ECO "B12"]
[WhiteElo "1583"]
[BlackElo "1698"]
[Annotator "NA RC"]
[PlyCount "56"]
[EventDate "2018.10.12"]
[EventType "tourn"]
[EventCountry "DEN"]
[SourceTitle "playchess.com"]
[Source "ChessBase"]
[SourceQuality "1"]
[TimeControl "40/5400+30:1800+30"]

1. e4 {[%emt 0:02:06]} c6 {[%emt 0:00:12]} 2. d4 {[%emt 0:00:50]} d5 {[%emt 0:00:07]} 3. e5 {[%emt 0:00:06]} Bf5 {[%emt 0:00:08]} 4. Bd3 {[%emt 0:00:36]} Bxd3 {[%emt 0:00:03]} 5. Qxd3 {[%emt 0:00:16]} e6 {[%emt 0:00:16]} 6. Nf3 {[%emt 0:00:12]} Nd7 {[%emt 0:00:21]} 7. O-O {[%emt 0:00:41]} c5 {[%emt 0:00:47]} 8. c3 {[%emt 0:00:30]} Ne7 {[%emt 0:01:30]} 9. dxc5 {[%emt 0:23:03]} Nxc5 {[%emt 0:06:50]} 10. Qb5+ {[%emt 0:00:16]} Nc6 {[%emt 0:01:54]} 11. Be3 {[%emt 0:02:27]} a6 {[%emt 0:02:43]} 12. Qe2 {[%emt 0:06:54]} Be7 {[%emt 0:05:58]} 13. Rd1 {[%emt 0:19:59]} Qc7 {[%emt 0:02:55]} 14. Bf4 {[%emt 0:00:27]} b5 {[%emt 0:03:53]} 15. Nd4 {[%emt 0:00:19]} O-O {[%emt 0:03:24]} 16. Nxc6 {[%emt 0:01:07]} Qxc6 {[%emt 0:00:20]} 17. Qg4 {[%emt 0:01:02]} Kh8 {[%emt 0:01:45]} 18. b4 {[%emt 0:02:37]} Ne4 {[%emt 0:04:21]} 19. Rd3 {[%emt 0:01:06]} f6 {[%emt 0:05:20]} 20. Rh3 {[%emt 0:02:25]} Nxf2 {[%emt 0:13:37]} 21. Kxf2 {[%emt 0:05:37]} fxe5 {[%emt 0:02:18]} 22. g3 {[%emt 0:00:54]} exf4 {[%emt 0:04:23]} 23. gxf4 {[%emt 0:00:19]} Qd6 {[%emt 0:03:45]} 24. Rf3 {[%emt 0:01:55]} Rf7 {[%emt 0:02:45]} 25. Nd2 {[%emt 0:01:03]} Raf8 {[%emt 0:01:51]} 26. Rg1 {[%emt 0:00:15]} Qxf4 {[%emt 0:11:50]} 27. Qxf4 {[%emt 0:08:29]} Rxf4 {[%emt 0:00:12]} 28. Re1 {[%emt 0:00:35]} Bh4+ {[%emt 0:00:34]} 0-1